fUST/lending_fUST_20251124
["ID","MTS","AMOUNT","RATE_DAILY","PERIOD"]
[394718899,1763914021779,181.55,1e-05,2]
[394718900,1763914022075,181.55,1.5e-05,2]
[394718901,1763914081736,181.54,1e-05,2]
[394718934,1763914231650,-182.91933958,7.504e-05,2]
[394718936,1763914231659,-500.0,7.51e-05,2]
[394718938,1763914231669,-500.0,7.51e-05,2]
[394718940,1763914231679,-500.0,7.51e-05,2]
[394718943,1763914231688,-101.4626089,7.51e-05,2]
[394718946,1763914231703,-398.5373911,7.51e-05,2]
[394718949,1763914231712,-500.0,7.51e-05,2]
[394718951,1763914231722,-500.0,7.51e-05,2]
[394718953,1763914231731,-271.96633966,7.51e-05,2]
[394719161,1763914237817,-228.03366034,7.51e-05,2]
[394719162,1763914237835,-341.06930655,7.51e-05,2]
[394719163,1763914237845,-431.89701901,7.51e-05,2]
[394719199,1763914239840,-68.10298099,7.51e-05,2]
[394719201,1763914239849,-500.0,7.51e-05,2]
[394719203,1763914239858,-500.0,7.51e-05,2]
[394719204,1763914239869,-350.00000004,7.51e-05,2]
[394719206,1763914239878,-500.0,7.51e-05,2]
[394719208,1763914239887,-500.0,7.51e-05,2]
[394719210,1763914239896,-500.0,7.51e-05,2]
[394719212,1763914239905,-500.0,7.51e-05,2]
[394719213,1763914239914,-500.0,7.51e-05,2]
[394719215,1763914239924,-500.0,7.51e-05,2]
[394719216,1763914239933,-361.24077987,7.51e-05,2]
[394719218,1763914239952,-138.75922013,7.51e-05,2]
[394719219,1763914239962,-500.0,7.51e-05,2]
[394719220,1763914239971,-500.0,7.51e-05,2]
[394719221,1763914239980,-541.8591418,7.51e-05,2]
[394719222,1763914239990,-500.0,7.51e-05,2]
[394719223,1763914239999,-195.86915592,7.51e-05,2]
[394719224,1763914240009,-500.0,7.51e-05,2]
[394719225,1763914240018,-461.80814132,7.51e-05,2]
[394719226,1763914240027,-500.0,7.51e-05,2]
[394719227,1763914240036,-500.0,7.51e-05,2]
[394719228,1763914240045,-500.0,7.51e-05,2]
[394719229,1763914240056,-500.0,7.51e-05,2]
[394719230,1763914240065,-500.0,7.51e-05,2]
[394719231,1763914240074,-500.0,7.51e-05,2]
[394719232,1763914240083,-500.0,7.51e-05,2]
[394719233,1763914240093,-500.0,7.51e-05,2]
[394719234,1763914240102,-500.0,7.51e-05,2]
[394719235,1763914240111,-500.0,7.51e-05,2]
[394719236,1763914240120,-394.38778471,7.51e-05,2]
[394719264,1763914245311,-105.61221529,7.51e-05,2]
[394719265,1763914245321,-378.6795399,7.51e-05,2]
[394719266,1763914245332,-121.3204601,7.51e-05,2]
[394719267,1763914245342,-500.0,7.51e-05,2]
[394719268,1763914245352,-500.0,7.51e-05,2]
[394719269,1763914245361,-500.0,7.51e-05,2]
[394719270,1763914245370,-500.0,7.51e-05,2]
[394719271,1763914245379,-231.246421,7.51e-05,2]
[394719272,1763914245395,-268.753579,7.51e-05,2]
[394719273,1763914245405,-500.0,7.51e-05,2]
[394719274,1763914245414,-500.0,7.51e-05,2]
[394719275,1763914245424,-393.246421,7.51e-05,2]
[394719300,1763914245834,-106.753579,7.51e-05,2]
[394719302,1763914245843,-500.0,7.51e-05,2]
[394719304,1763914245853,-500.0,7.51e-05,2]
[394719306,1763914245863,-500.0,7.51e-05,2]
[394719308,1763914245873,-500.0,7.51e-05,2]
[394719310,1763914245882,-500.0,7.51e-05,2]
[394719312,1763914245891,-500.0,7.51e-05,2]
[394719314,1763914245901,-500.0,7.51e-05,2]
[394719316,1763914245910,-260.0,7.51e-05,2]
[394719318,1763914245920,-500.0,7.51e-05,2]
[394719320,1763914245930,-861.06403697,7.51e-05,2]
[394719322,1763914245940,-861.06403697,7.51e-05,2]
[394719324,1763914245949,-861.06403697,7.51e-05,2]
[394719326,1763914245958,-861.06403697,7.51e-05,2]
[394719328,1763914245972,-861.06403697,7.51e-05,2]
[394719330,1763914245981,-861.06403697,7.51e-05,2]
[394719332,1763914245990,-861.06403697,7.51e-05,2]
[394719334,1763914245999,-861.06403697,7.51e-05,2]
[394719336,1763914246008,-861.06403697,7.51e-05,2]
[394719338,1763914246017,-861.06403697,7.51e-05,2]
[394719340,1763914246027,-861.06403697,7.51e-05,2]
[394719342,1763914246036,-861.06403697,7.51e-05,2]
[394719344,1763914246045,-861.06403697,7.51e-05,2]
[394719346,1763914246055,-861.06403697,7.51e-05,2]
[394719348,1763914246064,-861.06403697,7.51e-05,2]
[394719350,1763914246073,-861.06403697,7.51e-05,2]
[394719352,1763914246083,-861.06403697,7.51e-05,2]
[394719354,1763914246092,-861.06403697,7.51e-05,2]
[394719356,1763914246102,-861.06403697,7.51e-05,2]
[394719357,1763914246112,-861.06403697,7.51e-05,2]
[394719359,1763914246121,-861.06403697,7.51e-05,2]
[394719361,1763914246131,-861.06403697,7.51e-05,2]
[394719363,1763914246140,-861.06403697,7.51e-05,2]
[394719365,1763914246149,-861.06403697,7.51e-05,2]
[394719367,1763914246159,-861.06403697,7.51e-05,2]
[394719369,1763914246168,-861.06403697,7.51e-05,2]
[394719371,1763914246179,-861.06403697,7.51e-05,2]
[394719373,1763914246189,-861.06403697,7.51e-05,2]
[394719375,1763914246199,-861.06403697,7.51e-05,2]
[394719377,1763914246208,-861.06403697,7.51e-05,2]
[394719379,1763914246218,-861.06403697,7.51e-05,2]
[394719381,1763914246228,-861.06403697,7.51e-05,2]
[394719383,1763914246237,-861.06403697,7.51e-05,2]
[394719385,1763914246247,-500.0,7.51e-05,2]
[394719387,1763914246256,-500.0,7.51e-05,2]
[394719389,1763914246265,-500.0,7.51e-05,2]
[394719391,1763914246275,-500.0,7.51e-05,2]
[394719393,1763914246285,-500.0,7.51e-05,2]
[394719394,1763914246295,-540.57538495,7.51e-05,2]
[394719395,1763914246304,-500.0,7.51e-05,2]
[394719396,1763914246314,-500.0,7.51e-05,2]
[394719397,1763914246324,-500.0,7.51e-05,2]
[394719398,1763914246334,-848.83301372,7.51e-05,2]
[394719399,1763914246344,-500.0,7.51e-05,2]
[394719401,1763914246353,-848.83301372,7.51e-05,2]
[394719403,1763914246362,-848.83301372,7.51e-05,2]
[394719405,1763914246372,-848.83301372,7.51e-05,2]
[394719407,1763914246382,-848.83301372,7.51e-05,2]
[394719409,1763914246397,-332.0,7.51e-05,2]
[394719411,1763914246407,-848.83301372,7.51e-05,2]
[394719413,1763914246416,-848.83301372,7.51e-05,2]
[394719415,1763914246427,-848.83301372,7.51e-05,2]
[394719417,1763914246437,-848.83301372,7.51e-05,2]
[394719419,1763914246447,-848.83301372,7.51e-05,2]
[394719421,1763914246456,-848.83301372,7.51e-05,2]
[394719423,1763914246467,-848.83301372,7.51e-05,2]
[394719425,1763914246476,-848.83301372,7.51e-05,2]
[394719427,1763914246487,-848.83301372,7.51e-05,2]
[394719429,1763914246496,-848.83301372,7.51e-05,2]
[394719431,1763914246505,-848.83301372,7.51e-05,2]
[394719433,1763914246514,-848.83301372,7.51e-05,2]
[394719435,1763914246523,-848.83301372,7.51e-05,2]
[394719437,1763914246533,-848.83301372,7.51e-05,2]
[394719439,1763914246542,-848.83301372,7.51e-05,2]
[394719441,1763914246551,-848.83301372,7.51e-05,2]
[394719443,1763914246560,-848.83301372,7.51e-05,2]
[394719445,1763914246569,-848.83301372,7.51e-05,2]
[394719447,1763914246578,-848.83301372,7.51e-05,2]
[394719449,1763914246587,-848.83301372,7.51e-05,2]
[394719451,1763914246596,-848.83301372,7.51e-05,2]
[394719453,1763914246605,-848.83301372,7.51e-05,2]
[394719455,1763914246615,-818.87420148,7.51e-05,2]
[394719457,1763914246624,-818.87420148,7.51e-05,2]
[394719459,1763914246633,-818.87420148,7.51e-05,2]
[394719461,1763914246643,-818.87420148,7.51e-05,2]
[394719463,1763914246652,-818.87420148,7.51e-05,2]
[394719465,1763914246662,-818.87420148,7.51e-05,2]
[394719467,1763914246671,-818.87420148,7.51e-05,2]
[394719469,1763914246682,-818.87420148,7.51e-05,2]
[394719471,1763914246691,-818.87420148,7.51e-05,2]
[394719473,1763914246701,-818.87420148,7.51e-05,2]
[394719475,1763914246711,-818.87420148,7.51e-05,2]
[394719477,1763914246720,-818.87420148,7.51e-05,2]
[394719479,1763914246730,-818.87420148,7.51e-05,2]
[394719481,1763914246740,-818.87420148,7.51e-05,2]
[394719483,1763914246749,-818.87420148,7.51e-05,2]
[394719485,1763914246759,-818.87420145,7.51e-05,2]
[394719487,1763914246769,-818.87420145,7.51e-05,2]
[394719489,1763914246778,-175006.2050205,7.511e-05,2]
[394719491,1763914246791,-17684.95395784,7.511e-05,2]
[394721095,1763914625728,150.0,0.00016476,30]
[394721096,1763914625890,150.0,0.00017974,30]
[394721097,1763914626349,183.66,0.00019471,30]
[394721098,1763915204088,-163.46915366,6.394e-05,2]
[394721099,1763915204112,-4.7239346,6.459e-05,2]
[394721170,1763915438164,-158.74521906,6.142e-05,2]
[394721171,1763915438173,-158.74521906,6.204e-05,2]
[394721172,1763915438183,-189.88095279,6.299e-05,2]
[394721173,1763915438193,-206.65477971,6.971e-05,2]
[394721174,1763915438203,-495.18708248,7.493e-05,2]
[394721175,1763915438214,-163.46915366,7.51e-05,2]
[394721176,1763915438224,-210.3287276,7.51e-05,2]
[394721177,1763915438234,-168.0,7.658e-05,2]
[394721178,1763915438244,-300.0,7.659e-05,2]
[394721179,1763915438254,-300.0,7.659e-05,2]
[394721180,1763915438264,-300.0,7.659e-05,2]
[394721181,1763915438274,-300.0,7.659e-05,2]
[394721182,1763915438284,-300.0,7.659e-05,2]
[394721183,1763915438294,-300.0,7.659e-05,2]
[394721184,1763915438304,-300.0,7.659e-05,2]
[394721185,1763915438314,-300.0,7.659e-05,2]
[394721186,1763915438324,-300.0,7.659e-05,2]
[394721187,1763915438333,-300.0,7.659e-05,2]
[394721188,1763915438344,-300.0,7.659e-05,2]
[394721189,1763915438354,-300.0,7.659e-05,2]
[394721190,1763915438364,-300.0,7.659e-05,2]
[394721191,1763915438373,-300.0,7.659e-05,2]
[394721192,1763915438383,-300.0,7.659e-05,2]
[394721193,1763915438393,-600.0,7.659e-05,2]
[394721194,1763915438403,-1716.49051009,7.865e-05,2]
[394721195,1763915438412,-500.0,8.075e-05,2]
[394721196,1763915438422,-500.0,8.075e-05,2]
[394721197,1763915438431,-500.0,8.075e-05,2]
[394721198,1763915438441,-500.0,8.075e-05,2]
[394721199,1763915438450,-500.0,8.075e-05,2]
[394721200,1763915438460,-403.01035904,8.075e-05,2]
[394721201,1763915438470,-500.0,8.075e-05,2]
[394721202,1763915438480,-500.0,8.075e-05,2]
[394721203,1763915438489,-500.0,8.075e-05,2]
[394721204,1763915438498,-500.0,8.075e-05,2]
[394721205,1763915438672,-500.0,8.075e-05,2]
[394721206,1763915438681,-500.0,8.075e-05,2]
[394721207,1763915438692,-500.0,8.075e-05,2]
[394721208,1763915438702,-500.0,8.075e-05,2]
[394721209,1763915438713,-380.03950686,8.075e-05,2]
[394721210,1763915438725,-500.0,8.075e-05,2]
[394721211,1763915438735,-500.0,8.075e-05,2]
[394721212,1763915438745,-500.0,8.075e-05,2]
[394721213,1763915438755,-1716.49051009,8.129e-05,2]
[394721214,1763915438764,-224.05952429,8.298e-05,2]
[394721215,1763915438774,-720.0,8.425e-05,2]
[394721216,1763915438784,-160.0,8.609e-05,2]
[394721217,1763915438794,-353.29325365,8.609e-05,2]
[394721218,1763915438804,-546.80172526,8.635e-05,2]
[394721219,1763915438814,-864.0,9.268e-05,2]
[394721220,1763915438828,-18066.80347636,9.655e-05,2]
[394721260,1763915440239,-43556.0,9.655e-05,2]
[394721302,1763915657316,-660.0,0.00018,20]
[394721303,1763915662628,-237.0,0.00018,20]
[394721307,1763916545255,-191.34643683,7.892e-05,2]
[394721308,1763916545275,-289.41559172,7.972e-05,2]
[394721309,1763916545296,-300.0,8.053e-05,2]
[394721310,1763916545317,-300.0,8.134e-05,2]
[394721311,1763916545338,-197.08214325,8.135e-05,2]
[394721312,1763916545361,-172775.2837762,8.135e-05,2]
[394721313,1763916546092,-61356.56242751,8.135e-05,2]
[394721314,1763916546120,-500.0,8.234e-05,2]
[394721315,1763916546150,-188.00395069,8.234e-05,2]
[394721316,1763916546190,-211.44559545,8.234e-05,2]
[394721317,1763916546223,-500.0,8.234e-05,2]
[394721318,1763916546250,-500.0,8.234e-05,2]
[394721319,1763916546278,-500.0,8.234e-05,2]
[394721320,1763916546305,-500.0,8.234e-05,2]
[394721321,1763916546330,-500.0,8.234e-05,2]
[394721322,1763916546355,-300.0,8.235e-05,2]
[394721323,1763916546378,-300.0,8.235e-05,2]
[394721324,1763916546401,-300.0,8.235e-05,2]
[394721325,1763916546424,-300.0,8.235e-05,2]
[394721326,1763916546449,-300.0,8.235e-05,2]
[394721327,1763916546471,-300.0,8.235e-05,2]
[394721328,1763916546493,-300.0,8.235e-05,2]
[394721329,1763916546517,-300.0,8.235e-05,2]
[394721330,1763916546539,-300.0,8.235e-05,2]
[394721331,1763916546562,-300.0,8.235e-05,2]
[394721332,1763916546586,-300.0,8.235e-05,2]
[394721333,1763916546608,-300.0,8.235e-05,2]
[394721334,1763916546631,-300.0,8.235e-05,2]
[394721335,1763916546654,-300.0,8.235e-05,2]
[394721336,1763916546678,-300.0,8.235e-05,2]
[394721337,1763916546698,-50000.0,8.235e-05,2]
[394721338,1763916546721,-600.0,8.399e-05,2]
[394721339,1763916546743,-353.29325365,8.612e-05,2]
[394721340,1763916546766,-300.0,8.947e-05,2]
[394721341,1763916546789,-720.0,9.239e-05,2]
[394721342,1763916546809,-437.57258638,9.469e-05,2]
[394721343,1763916546830,-500.0,9.633e-05,2]
[394721344,1763916546850,-500.0,9.633e-05,2]
[394721345,1763916546870,-500.0,9.633e-05,2]
[394721346,1763916546892,-500.0,9.633e-05,2]
[394721347,1763916546914,-500.0,9.654e-05,2]
[394721348,1763916546934,-580.79822991,9.654e-05,2]
[394721349,1763916546956,-500.0,9.654e-05,2]
[394721350,1763916546976,-500.0,9.654e-05,2]
[394721351,1763916546997,-500.0,9.654e-05,2]
[394721352,1763916547019,-500.0,9.654e-05,2]
[394721353,1763916547041,-500.0,9.654e-05,2]
[394721354,1763916547066,-500.0,9.654e-05,2]
[394721355,1763916547090,-571.14851458,9.654e-05,2]
[394721356,1763916547112,-500.0,9.654e-05,2]
[394721357,1763916547136,-500.0,9.654e-05,2]
[394721358,1763916547160,-500.0,9.654e-05,2]
[394721359,1763916547188,-500.0,9.654e-05,2]
[394721360,1763916547213,-500.0,9.654e-05,2]
[394721361,1763916547237,-650.0,9.654e-05,2]
[394721362,1763916547260,-500.0,9.654e-05,2]
[394721363,1763916547283,-630.0,9.724e-05,2]
[394721364,1763916547305,-989.0,9.724e-05,2]
[394721365,1763916547326,-2152.0,9.724e-05,2]
[394721366,1763916547348,-414.0,9.724e-05,2]
[394721367,1763916547369,-15177.39281285,9.755e-05,2]
[394721368,1763916547390,-2947.60494506,9.871e-05,2]
[394721369,1763916561102,-500.0,8.234e-05,2]
[394721370,1763916561126,-600.0,8.234e-05,2]
[394721371,1763916561148,-500.0,8.234e-05,2]
[394721372,1763916561175,-500.0,8.234e-05,2]
[394721373,1763916561195,-500.0,8.234e-05,2]
[394721374,1763916561221,-500.0,8.234e-05,2]
[394721375,1763916561242,-500.0,8.234e-05,2]
[394721376,1763916561266,-500.0,8.234e-05,2]
[394721377,1763916561289,-500.0,8.234e-05,2]
[394721378,1763916561309,-382.39341272,8.234e-05,2]
[394721379,1763916561333,-500.0,8.234e-05,2]
[394721380,1763916561352,-3913.41056826,9.992e-05,2]
[394721381,1763916561371,-227.76923575,0.0001,2]
[394721382,1763916561391,-187.78006525,0.0001,2]
[394721383,1763916561409,-41807.0,0.0001,2]
[394721384,1763916561430,-232.55692903,0.00010135,2]
[394721385,1763916561452,-864.0,0.00010162,2]
[394721386,1763916561474,-515.2287209,0.00010181,2]
[394721387,1763916561493,-350.16109761,0.00010181,2]
[394721388,1763916561511,-1000.0,0.00010181,2]
[394721389,1763916561534,-194.72792766,0.00010548,2]
[394721390,1763916561554,-151.0,0.00010623,2]
[394721391,1763916561573,-151.0,0.00010623,2]
[394721392,1763916561593,-151.0,0.00010623,2]
[394721393,1763916561613,-151.0,0.00010623,2]
[394721394,1763916561633,-151.0,0.00010623,2]
[394721395,1763916561652,-151.0,0.00010623,2]
[394721396,1763916561672,-151.0,0.00010623,2]
[394721397,1763916561692,-151.0,0.00010623,2]
[394721398,1763916561710,-298.53099561,0.00010623,2]
[394721399,1763916561729,-1000.0,0.00010728,2]
[394721400,1763916561748,-590.25,0.00010958,2]
[394721401,1763916561768,-999.0,0.00010959,2]
[394721402,1763916561790,-500.0,0.00010959,2]
[394721403,1763916561811,-500.0,0.00010959,2]
[394721404,1763916561831,-500.0,0.00010959,2]
[394721405,1763916561851,-500.0,0.00010959,2]
[394721406,1763916561872,-500.0,0.00010959,2]
[394721407,1763916561893,-500.0,0.00010959,2]
[394721408,1763916561914,-500.0,0.00010959,2]
[394721409,1763916561940,-500.0,0.00010959,2]
[394721410,1763916561961,-500.0,0.00010959,2]
[394721411,1763916561981,-500.0,0.00010959,2]
[394721412,1763916562001,-500.0,0.00010959,2]
[394721413,1763916562022,-500.0,0.00010959,2]
[394721414,1763916562042,-500.0,0.00010959,2]
[394721415,1763916562062,-500.0,0.00010959,2]
[394721416,1763916562082,-500.0,0.00010959,2]
[394721417,1763916562103,-500.0,0.00010959,2]
[394721418,1763916562125,-500.0,0.00010959,2]
[394721419,1763916562146,-500.0,0.00010959,2]
[394721420,1763916562169,-500.0,0.00010959,2]
[394721421,1763916562189,-500.0,0.00010959,2]
[394721422,1763916562211,-500.0,0.00010959,2]
[394721423,1763916562231,-500.0,0.00010959,2]
[394721424,1763916562254,-500.0,0.00010959,2]
[394721425,1763916562273,-500.0,0.00010959,2]
[394721426,1763916562295,-500.0,0.00010959,2]
[394721427,1763916562314,-174.77904742,0.00010959,2]
[394721428,1763916562335,-201.93286099,0.00011096,2]
[394721429,1763916562356,-1000.0,0.00011179,2]
[394721430,1763916562377,-209.40437684,0.00011644,2]
[394721431,1763916562396,-590.25,0.00012054,2]
[394721432,1763916562416,-268.03171482,0.00012135,2]
[394721433,1763916562438,-217.15233878,0.00012192,2]
[394721434,1763916562640,-1000.0,0.00012297,2]
[394721435,1763916562662,-244.0,0.00012297,2]
[394721436,1763916562683,-630.0,0.00012724,2]
[394721437,1763916562702,-989.0,0.00012724,2]
[394721438,1763916562722,-2152.0,0.00012724,2]
[394721439,1763916562744,-414.0,0.00012724,2]
[394721440,1763916562765,-225.18697532,0.0001274,2]
[394721441,1763916562786,-6175.43202945,0.000129,2]
[394721442,1763916562807,-4116.02262059,0.000129,2]
[394721443,1763916563343,-1491.1043496,8.152e-05,2]
[394721444,1763916563364,-2059.40940886,0.000129,2]
[394721445,1763916563387,-590.25,0.0001315,2]
[394721446,1763916563411,-233.51889341,0.00013288,2]
[394721447,1763916563436,-1000.0,0.00013526,2]
[394721448,1763916563459,-492.0,0.00013526,2]
[394721449,1763916563480,-500.0,0.00013698,2]
[394721450,1763916563501,-500.0,0.00013698,2]
[394721451,1763916563522,-521.45280781,0.00013698,2]
[394721452,1763916563543,-1000.0,0.00013699,2]
[394721453,1763916563563,-1193.076074,0.00013699,2]
[394721454,1763916563585,-1414.660634,0.00013699,2]
[394721455,1763916563607,-500.0,0.00013699,2]
[394721456,1763916563627,-500.0,0.00013699,2]
[394721457,1763916563648,-500.0,0.00013699,2]
[394721458,1763916563668,-500.0,0.00013699,2]
[394721459,1763916563689,-500.0,0.00013699,2]
[394721460,1763916563708,-500.0,0.00013699,2]
[394721461,1763916563728,-500.0,0.00013699,2]
[394721462,1763916563751,-242.15909246,0.00013836,2]
[394721463,1763916563772,-400.820744,0.00014024,2]
[394721464,1763916563793,-301.288988,0.00014024,2]
[394721465,1763916563813,-602.577976,0.00014024,2]
[394721466,1763916563835,-301.288988,0.00014024,2]
[394721467,1763916563858,-301.288988,0.00014024,2]
[394721468,1763916563881,-303.5065006,0.00014135,2]
[394721469,1763916563901,-590.25,0.00014246,2]
[394721470,1763916563926,-500.0,0.00014364,2]
[394721471,1763916563950,-251.11897888,0.00014384,2]
[394721472,1763916563971,-500.0,0.00014384,2]
[394721473,1763916563991,-500.0,0.00014493,2]
[394721474,1763916564013,-151.0,0.000145,2]
[394721475,1763916564034,-1043.71094465,0.00014521,2]
[394721476,1763916567163,-500.0,0.00014384,2]
[394721477,1763916567184,-500.0,0.00014384,2]
[394721478,1763916567203,-17207.63393895,0.00014521,2]
[394721479,1763916567222,-160.0,0.00014707,2]
[394721480,1763916567243,-500.0,0.00014791,2]
[394721481,1763916567262,-500.0,0.0001482,2]
[394721482,1763916567281,-301.288988,0.00014846,2]
[394721483,1763916567300,-301.288988,0.00014846,2]
[394721484,1763916567319,-301.288988,0.00014846,2]
[394721485,1763916567339,-301.288988,0.00014846,2]
[394721486,1763916567360,-301.288988,0.00014846,2]
[394721487,1763916567379,-301.288988,0.00014846,2]
[394721488,1763916567399,-301.288988,0.00014846,2]
[394721489,1763916567418,-301.288988,0.00014846,2]
[394721490,1763916567440,-1000.0,0.00014879,2]
[394721491,1763916567461,-791.0,0.00014879,2]
[394721492,1763916567482,-257.0091205,0.00014896,2]
[394721493,1763916567505,-301.3053093,0.000149,2]
[394721494,1763916567537,-301.30530928,0.000149,2]
[394721495,1763916567557,-301.30530928,0.000149,2]
[394721496,1763916567581,-260.4103811,0.00014932,2]
[394721497,1763916567599,-500.0,0.00015003,2]
[394721498,1763916567618,-60196.39218939,0.00015028,2]
[394721500,1763916621477,3471.40142879,0.0002,30]
[394721539,1763916632098,-342.21426695,8.052e-05,2]
[394721541,1763916632115,-452.89601,8.052e-05,2]
[394721545,1763916632157,-210.4886748,8.052e-05,2]
[394721546,1763916632169,-277.0,8.133e-05,2]
[394721547,1763916632184,-300.0,8.133e-05,2]
[394721548,1763916632201,-1200.0,8.133e-05,2]
[394721549,1763916632214,-500.0,8.134e-05,2]
[394721550,1763916632227,-500.0,8.134e-05,2]
[394721553,1763916632241,-500.0,8.134e-05,2]
[394721555,1763916632255,-500.0,8.134e-05,2]
[394721556,1763916632271,-500.0,8.134e-05,2]
[394721558,1763916632286,-500.0,8.134e-05,2]
[394721561,1763916632301,-500.0,8.134e-05,2]
[394721562,1763916632315,-500.0,8.134e-05,2]
[394721563,1763916632327,-500.0,8.134e-05,2]
[394721564,1763916632339,-500.0,8.134e-05,2]
[394721565,1763916632355,-500.0,8.134e-05,2]
[394721566,1763916632369,-500.0,8.134e-05,2]
[394721567,1763916632381,-500.0,8.134e-05,2]
[394721568,1763916632393,-500.0,8.134e-05,2]
[394721569,1763916632407,-500.0,8.134e-05,2]
[394721570,1763916632418,-500.0,8.134e-05,2]
[394721571,1763916632430,-500.0,8.134e-05,2]
[394721572,1763916632446,-500.0,8.134e-05,2]
[394721573,1763916632458,-500.0,8.134e-05,2]
[394721574,1763916632470,-500.0,8.134e-05,2]
[394721575,1763916632482,-500.0,8.134e-05,2]
[394721576,1763916632494,-500.0,8.134e-05,2]
[394721577,1763916632506,-500.0,8.134e-05,2]
[394721578,1763916632519,-374.0602123,8.134e-05,2]
[394721579,1763916632531,-500.0,8.134e-05,2]
[394721580,1763916632542,-500.0,8.134e-05,2]
[394721581,1763916632555,-500.0,8.134e-05,2]
[394721582,1763916632569,-267.49491678,8.134e-05,2]
[394721583,1763916632581,-500.0,8.134e-05,2]
[394721584,1763916632594,-500.0,8.134e-05,2]
[394721585,1763916632607,-500.0,8.134e-05,2]
[394721586,1763916632620,-500.0,8.134e-05,2]
[394721587,1763916632633,-500.0,8.134e-05,2]
[394721588,1763916632646,-500.0,8.134e-05,2]
[394721589,1763916632658,-300.0,8.134e-05,2]
[394721590,1763916632670,-500.0,8.234e-05,2]
[394721591,1763916632683,-500.0,8.234e-05,2]
[394721592,1763916632695,-500.0,8.234e-05,2]
[394721593,1763916632708,-500.0,8.234e-05,2]
[394721594,1763916632720,-332.39341272,8.234e-05,2]
[394721595,1763916632733,-500.0,8.234e-05,2]
[394721596,1763916632745,-500.0,8.234e-05,2]
[394721597,1763916632756,-500.0,8.234e-05,2]
[394721598,1763916632769,-357.73875248,8.234e-05,2]
[394721599,1763916632782,-300.0,8.296e-05,2]
[394721600,1763916632795,-300.0,8.296e-05,2]
[394721601,1763916632807,-300.0,8.296e-05,2]
[394721602,1763916632819,-300.0,8.296e-05,2]
[394721603,1763916632832,-300.0,8.296e-05,2]
[394721604,1763916632844,-300.0,8.296e-05,2]
[394721605,1763916632857,-300.0,8.296e-05,2]
[394721606,1763916632870,-300.0,8.296e-05,2]
[394721607,1763916632882,-300.0,8.296e-05,2]
[394721608,1763916632894,-300.0,8.296e-05,2]
[394721609,1763916632906,-300.0,8.296e-05,2]
[394721610,1763916632918,-300.0,8.296e-05,2]
[394721611,1763916632931,-300.0,8.296e-05,2]
[394721612,1763916632944,-300.0,8.296e-05,2]
[394721613,1763916632957,-300.0,8.296e-05,2]
[394721614,1763916632969,-600.0,8.296e-05,2]
[394721615,1763916632982,-353.29325365,8.617e-05,2]
[394721616,1763916632995,-420.0,8.946e-05,2]
[394721617,1763916633008,-720.0,9.125e-05,2]
[394721618,1763916633020,-287.0,9.841e-05,2]
[394721619,1763916633034,-18929.64193643,9.9e-05,2]
[394721633,1763916638037,-528.33159308,9.899e-05,2]
[394721634,1763916638047,-500.0,9.899e-05,2]
[394721635,1763916638057,-500.0,9.899e-05,2]
[394721636,1763916638067,-500.0,9.899e-05,2]
[394721637,1763916638076,-316.77484822,9.899e-05,2]
[394721638,1763916638085,-500.0,9.899e-05,2]
[394721639,1763916638095,-500.0,9.899e-05,2]
[394721640,1763916638105,-500.0,9.899e-05,2]
[394721641,1763916638114,-500.0,9.899e-05,2]
[394721642,1763916638125,-500.0,9.899e-05,2]
[394721643,1763916638134,-871070.35806357,9.9e-05,2]
[394721644,1763916638145,-187.78006525,0.0001,2]
[394721645,1763916638154,-864.0,0.00010038,2]
[394721646,1763916638163,-194.72792766,0.00010548,2]
[394721647,1763916638172,-250.0,0.00010624,2]
[394721648,1763916638182,-250.0,0.00010624,2]
[394721649,1763916638196,-250.0,0.00010624,2]
[394721650,1763916638205,-250.0,0.00010624,2]
[394721651,1763916638215,-250.0,0.00010624,2]
[394721652,1763916638224,-250.0,0.00010624,2]